Body Name,Body,Supplier Name,Spending Service,Nature of Spend,Ledger Date,Invoice Reference, Net Amount (excluding VAT) 
Lancaster City Council,30UH,A & C Weber UK Ltd,Environmental Services,Equipment and Tools - General,24/06/2014,5688,"13,032.00"
Lancaster City Council,30UH,A & C Weber UK Ltd,Environmental Services,Equipment and Tools - General,30/06/2014,5700,"5,068.00"
Lancaster City Council,30UH,A.A.M. Services Limited,Environmental Services,Materials - General,27/06/2014,7769,552
Lancaster City Council,30UH,A.A.M. Services Limited,Regeneration and Planning,R & M - Buildings,25/06/2014,7792,650
Lancaster City Council,30UH,A1 Supaskips Ltd,Environmental Services,Materials - General,24/06/2014,13632,"1,358.15"
Lancaster City Council,30UH,A1 Supaskips Ltd,Environmental Services,Materials - General,24/06/2014,13879,602.8
Lancaster City Council,30UH,A1 Supaskips Ltd,Environmental Services,Materials - General,24/06/2014,13994,550
Lancaster City Council,30UH,A1 Supaskips Ltd,Environmental Services,Services - Waste Disposal,10/06/2014,54978,736.95
Lancaster City Council,30UH,A1 Supaskips Ltd,Environmental Services,Services - Waste Disposal,10/06/2014,58296,836.64
Lancaster City Council,30UH,A1 Supaskips Ltd,Environmental Services,Services - Waste Disposal,17/06/2014,13707,"1,361.80"
Lancaster City Council,30UH,A1 Supaskips Ltd,Environmental Services,Services - Waste Disposal,17/06/2014,13821,875.6
Lancaster City Council,30UH,A1 Supaskips Ltd,Environmental Services,Services - Waste Disposal,17/06/2014,13942,"1,091.20"
Lancaster City Council,30UH,A1 Supaskips Ltd,Environmental Services,Services - Waste Disposal,17/06/2014,58126,"1,673.34"
Lancaster City Council,30UH,A1 Supaskips Ltd,Environmental Services,Services - Waste Disposal,17/06/2014,58436,"1,283.38"
Lancaster City Council,30UH,A1 Supaskips Ltd,Environmental Services,Services - Waste Disposal,17/06/2014,58793,"1,684.26"
Lancaster City Council,30UH,A1 Supaskips Ltd,Environmental Services,Services - Waste Disposal,19/06/2014,58127,502.98
Lancaster City Council,30UH,A1 Supaskips Ltd,Environmental Services,Services - Waste Disposal,19/06/2014,58611,"2,466.28"
Lancaster City Council,30UH,A1 Supaskips Ltd,Environmental Services,Services - Waste Disposal,27/06/2014,58612,507.46
Lancaster City Council,30UH,A1 Supaskips Ltd,Environmental Services,Services - Waste Disposal,27/06/2014,58794,664.83
Lancaster City Council,30UH,Adastra,Regeneration and Planning,Exhibitions & Events - Guarantees,18/06/2014,O986458,"2,500.00"
Lancaster City Council,30UH,Alec Lyon,Regeneration and Planning,Services - General,05/06/2014,Platform 25,530
Lancaster City Council,30UH,Alpha Engraving,Environmental Services,Capital Payments To Contractors,11/06/2014,133,"1,004.80"
Lancaster City Council,30UH,Anchor Flooring Limited,Environmental Services,Capital Payments To Contractors,10/06/2014,AF/4295,"1,488.00"
Lancaster City Council,30UH,Anglo Espanol Ltd t/a Plastech Windows,Environmental Services,Contracted Services,24/06/2014,3453,562.5
Lancaster City Council,30UH,Anglo Espanol Ltd t/a Plastech Windows,Environmental Services,R & M - Buildings,02/06/2014,3546,"2,249.00"
Lancaster City Council,30UH,APSE,Environmental Services,Services - Consultants,25/06/2014,1415/281,724.6
Lancaster City Council,30UH,APSE,Environmental Services,Subscriptions,25/06/2014,1415/130,"2,215.00"
Lancaster City Council,30UH,ASSETtrac Ltd,Health & Housing,Contracted Services,11/06/2014,1367,"2,920.00"
Lancaster City Council,30UH,Attend-A-Lock,Environmental Services,Capital Payments To Contractors,18/06/2014,7761,"1,203.78"
Lancaster City Council,30UH,Baronmead International Ltd,Resources,R & M - Buildings,05/06/2014,11729,"1,250.00"
Lancaster City Council,30UH,Bay Camera & Communications Ltd,Regeneration and Planning,Capital Payments To Contractors,05/06/2014,2911,650
Lancaster City Council,30UH,Bay Camera & Communications Ltd,Environmental Services,Contract Maintenance,16/06/2014,2920,"1,383.33"
Lancaster City Council,30UH,Bay Camera & Communications Ltd,Environmental Services,Contracted Services,16/06/2014,2925,"1,059.00"
Lancaster City Council,30UH,Bay Camera & Communications Ltd,Environmental Services,Contracted Services,16/06/2014,2930,673.15
Lancaster City Council,30UH,Bay Tourism Association,Regeneration and Planning,Marketing,26/06/2014,533,500
Lancaster City Council,30UH,Bay Vets Ltd,Health & Housing,Services - Vets,03/06/2014,275597,514.76
Lancaster City Council,30UH,Bell Microsystems Ltd,Resources,Services - Consultants,04/06/2014,SI111795,"5,400.00"
Lancaster City Council,30UH,Bell Microsystems Ltd,Resources,Services - Consultants,04/06/2014,SI111822,860
Lancaster City Council,30UH,Bell Microsystems Ltd,Resources,Services - Consultants,04/06/2014,SI111823,"6,460.00"
Lancaster City Council,30UH,Bell Microsystems Ltd,Resources,Services - Consultants,05/06/2014,SI111833,"7,934.05"
Lancaster City Council,30UH,Besam Ltd,Environmental Services,Contract Maintenance,19/06/2014,CON/35866,"1,989.00"
Lancaster City Council,30UH,Bill Moore (Lifting Tackle) Ltd,Resources,R & M - Buildings,03/06/2014,77261,"1,680.00"
Lancaster City Council,30UH,BMC Software Distribution B.V. (Numara Division),Resources,Software - IS Helpdesk,23/06/2014,EI1306267,"8,779.00"
Lancaster City Council,30UH,Booker,Health & Housing,Materials For Resale,26/06/2014,bpc001364,988.16
Lancaster City Council,30UH,Booker ,Health & Housing,Materials For Resale,16/06/2014,bpc001323,"1,352.84"
Lancaster City Council,30UH,Bradley Environmental Consultants Limited,Environmental Services,Capital Payments To Contractors,24/06/2014,79416,880
Lancaster City Council,30UH,Bradley Environmental Consultants Limited,Resources,R & M - Buildings,16/06/2014,78478,906
Lancaster City Council,30UH,Bradley Environmental Consultants Limited,Resources,R & M - Buildings,20/06/2014,78648,"1,200.00"
Lancaster City Council,30UH,Brent Roebuck Road Markings Ltd,Environmental Services,R & M Sites & Signs,11/06/2014,73262,534
Lancaster City Council,30UH,Brent Roebuck Road Markings Ltd,Environmental Services,R & M Sites & Signs,11/06/2014,73263,926
Lancaster City Council,30UH,British Gas Business,Health & Housing,Electricity,03/06/2014,67574986/1,946.92
Lancaster City Council,30UH,British Gas Business,Health & Housing,Electricity,19/06/2014,67964885/1,920.55
Lancaster City Council,30UH,British Gas Business,Health & Housing,Gas,25/06/2014,68015774/1,"5,942.35"
Lancaster City Council,30UH,British Gas Business,Health & Housing,Gas,26/06/2014,68015730/1,555.87
Lancaster City Council,30UH,British Gas Business,Health & Housing,Gas,26/06/2014,68015768/1,"1,432.87"
Lancaster City Council,30UH,British Gas Business,Health & Housing,Gas,26/06/2014,68015769/1,981.85
Lancaster City Council,30UH,British Gas Business,Health & Housing,Gas,26/06/2014,68015770/1,"1,109.93"
Lancaster City Council,30UH,British Gas Business,Health & Housing,Gas,26/06/2014,6801577/1,"1,134.53"
Lancaster City Council,30UH,British Gas Business,Health & Housing,Gas,26/06/2014,68015772/1,"1,646.98"
Lancaster City Council,30UH,British Gas Business,Environmental Services,Gas,11/06/2014,67190684/1,616.28
Lancaster City Council,30UH,British Gas Business,Environmental Services,Gas,11/06/2014,67190689/1,925.68
Lancaster City Council,30UH,British Gas Business,Environmental Services,Gas,11/06/2014,67659882/1,952.98
Lancaster City Council,30UH,British Gas Business,Environmental Services,Gas,11/06/2014,67659884/1,645.89
Lancaster City Council,30UH,British Gas Business,Environmental Services,Gas,26/06/2014,68015729/1,514.56
Lancaster City Council,30UH,British Gas Business,Resources,Gas,11/06/2014,67885508/1,"1,294.62"
Lancaster City Council,30UH,British Gas Business,Resources,Gas,18/06/2014,68015773/1,"1,107.97"
Lancaster City Council,30UH,Bryan Hoggarth Ltd,Environmental Services,Repair & Mtce Of Vehicles,03/06/2014,250563,833.1
Lancaster City Council,30UH,Bryan Hoggarth Ltd,Environmental Services,Repair & Mtce Of Vehicles,03/06/2014,250592,-833.1
Lancaster City Council,30UH,BT PLC,Environmental Services,Hire Of Equipment,11/06/2014,20020267,"32,022.85"
Lancaster City Council,30UH,BT PLC,Environmental Services,Hire Of Equipment,11/06/2014,20020267-CR,"-2,030.74"
Lancaster City Council,30UH,Burrows (GM) Ltd,Environmental Services,Materials - General,30/06/2014,166883,555
Lancaster City Council,30UH,C C Plastering & Lancaster Damp Proofing,Health & Housing,Capital Grants,26/06/2014,Inv. CC/218,"2,200.00"
Lancaster City Council,30UH,C H Brownsord Ltd,Environmental Services,Void Maintenance - External,17/06/2014,385,"8,900.00"
Lancaster City Council,30UH,C V Solutions (Lancaster) Ltd t/a Driver Hire,Environmental Services,Contracted Services,04/06/2014,LA 674,709.2
Lancaster City Council,30UH,C V Solutions (Lancaster) Ltd t/a Driver Hire,Environmental Services,Contracted Services,04/06/2014,LA 707,630.4
Lancaster City Council,30UH,C V Solutions (Lancaster) Ltd t/a Driver Hire,Environmental Services,Contracted Services,04/06/2014,LA 722,758.45
Lancaster City Council,30UH,C V Solutions (Lancaster) Ltd t/a Driver Hire,Environmental Services,Contracted Services,04/06/2014,LA 737,630.4
Lancaster City Council,30UH,Cable&Wireless UK,Resources,Data Line Rental,04/06/2014,UK10/062014/5750,"7,123.33"
Lancaster City Council,30UH,Canal & River Trust,Resources,Rent,13/06/2014,36944,900
Lancaster City Council,30UH,CAPRARI,Environmental Services,Materials - General,11/06/2014,24222,"1,440.00"
Lancaster City Council,30UH,Carlisle Glass Limited,Environmental Services,White Lund Stock,02/06/2014,M 675405,598.5
Lancaster City Council,30UH,Carlisle Glass Limited,Environmental Services,White Lund Stock,09/06/2014,M 676038,"1,203.20"
Lancaster City Council,30UH,Carlisle Glass Limited,Environmental Services,White Lund Stock,30/06/2014,M 682997,692.12
Lancaster City Council,30UH,Carlisle Glass Limited,Environmental Services,White Lund Stock,30/06/2014,M 684389,"1,643.85"
Lancaster City Council,30UH,Charlesworth Tree Care & Fencing Ltd,Environmental Services,R & M - Buildings,30/06/2014,12284,"3,430.00"
Lancaster City Council,30UH,Chubb Fire & Security Ltd,Environmental Services,Equipment Maintenance,11/06/2014,4631975,875
Lancaster City Council,30UH,Cleanall Services Ltd.,Resources,Other Cleaning,16/06/2014,22370,"6,176.55"
Lancaster City Council,30UH,Contact One Limited,Environmental Services,Contracted Services,26/06/2014,EQ551,"1,349.78"
Lancaster City Council,30UH,Contact One Limited,Resources,R & M - Buildings,18/06/2014,3156,593
Lancaster City Council,30UH,Contact One Limited,Resources,R & M - Buildings,18/06/2014,3157,995
Lancaster City Council,30UH,Contract Sign Systems LTD,Health & Housing,Equipment and Tools - General,18/06/2014,32274,620
Lancaster City Council,30UH,Corona Energy,Health & Housing,Gas,25/06/2014,9324768,763.11
Lancaster City Council,30UH,Countrystyle Meats Farmshop,Health & Housing,Materials For Resale,16/06/2014,bpc001308,589.63
Lancaster City Council,30UH,County Care Services Ltd T/A Carewatch,Health & Housing,Contracted Services,26/06/2014,51749,"1,050.00"
Lancaster City Council,30UH,County Oil Group Ltd,Environmental Services,VMU Stock,30/06/2014,641328,"1,232.50"
Lancaster City Council,30UH,Craig Jury Plant & Groundworks Limited,Regeneration and Planning,Capital Payments To Contractors,19/06/2014,235,"1,016.00"
Lancaster City Council,30UH,Craig Jury Plant & Groundworks Limited,Environmental Services,Materials - General,19/06/2014,236,816
Lancaster City Council,30UH,Craig Jury Plant & Groundworks Limited,Regeneration and Planning,R & M - Sea & River / Promenade,12/06/2014,222,"1,360.00"
Lancaster City Council,30UH,Craig Jury Plant & Groundworks Limited,Regeneration and Planning,R & M - Sea & River / Promenade,12/06/2014,222,800
Lancaster City Council,30UH,Craig Jury Plant & Groundworks Limited,Environmental Services,R & M Sites & Signs,25/06/2014,233,658
Lancaster City Council,30UH,Crossling Ltd,Environmental Services,White Lund Stock,02/06/2014,1177307,706.63
Lancaster City Council,30UH,Cumbria Rural Housing Trust,Regeneration and Planning,Services - General,18/06/2014,298,"1,813.50"
Lancaster City Council,30UH,Cyclescheme Limited,Resources,Purchase of Cycles,05/06/2014,W229890,562.5
Lancaster City Council,30UH,D A Edgar Plastering & Tiling,Environmental Services,Contracted Services,24/06/2014,42,584
Lancaster City Council,30UH,Damtrad Limited,Environmental Services,White Lund Stock,30/06/2014,14/3737/16/06,"1,464.00"
Lancaster City Council,30UH,Danfo (UK) Limited,Environmental Services,Capital Payments To Contractors,11/06/2014,2603,"48,420.00"
Lancaster City Council,30UH,Danfo (UK) Limited,Environmental Services,Services - General,11/06/2014,2616,"14,511.81"
Lancaster City Council,30UH,Daniel Thwaites plc,Regeneration and Planning,Bar Supplies,11/06/2014,npc000236,777.24
Lancaster City Council,30UH,Daniel Thwaites plc,Regeneration and Planning,Bar Supplies,24/06/2014,npc000246,"1,325.21"
Lancaster City Council,30UH,Dave Wilson Developments,Health & Housing,Capital Grants,04/06/2014,spr000466,"5,074.00"
Lancaster City Council,30UH,David A. Farrer Limited,Health & Housing,Capital Grants,23/06/2014,spr000477,"2,950.00"
Lancaster City Council,30UH,David A. Farrer Limited,Health & Housing,Capital Grants,26/06/2014,spr000479,"3,030.60"
Lancaster City Council,30UH,David A. Farrer Limited,Environmental Services,Capital Payments To Contractors,18/06/2014,3964,"2,695.00"
Lancaster City Council,30UH,David Willan,Health & Housing,Materials For Resale,16/06/2014,bpc001318,530.78
Lancaster City Council,30UH,Dennis Eagle Ltd,Environmental Services,Repair & Mtce Of Vehicles,11/06/2014,DE10784618,"1,308.58"
Lancaster City Council,30UH,Dennis Eagle Ltd,Environmental Services,Repair & Mtce Of Vehicles,11/06/2014,DE10784618,"2,479.47"
Lancaster City Council,30UH,Dvla,Environmental Services,Vehicle Licences,09/06/2014,24195,652.5
Lancaster City Council,30UH,E.ON,Health & Housing,Electricity,05/06/2014,H100C04912,"1,554.41"
Lancaster City Council,30UH,E.ON,Environmental Services,Electricity,20/06/2014,H1015C41FF,"1,019.83"
Lancaster City Council,30UH,E.ON ,Environmental Services,Electricity,05/06/2014,HDBEA5D1D,586.85
Lancaster City Council,30UH,E.ON ,Environmental Services,Electricity,11/06/2014,H101523273,692.28
Lancaster City Council,30UH,Edmundson Electrical Ltd,Environmental Services,Capital Payments To Contractors,12/06/2014,88149,858.52
Lancaster City Council,30UH,Electricity North West Limited,Regeneration and Planning,Capital Payments To Contractors,19/06/2014,Y68970-A,"1,264.32"
Lancaster City Council,30UH,EMCOR Facilities Services Ltd,Environmental Services,Capital Payments To Contractors,04/06/2014,00325863 RI,"67,129.09"
Lancaster City Council,30UH,EMCOR Facilities Services Ltd,Environmental Services,Void Maintenance - External,04/06/2014,00326466 RI,"8,948.22"
Lancaster City Council,30UH,EMCOR Facilities Services Ltd,Environmental Services,Void Maintenance - External,04/06/2014,00326478 RI,"20,604.58"
Lancaster City Council,30UH,English Landscapes Ltd t/a The Landscape Group,Regeneration and Planning,Capital Payments To Contractors,12/06/2014,118,"133,387.50"
Lancaster City Council,30UH,Enigma CCTV Ltd,Environmental Services,Contracted Services,11/06/2014,2147,"6,910.50"
Lancaster City Council,30UH,Enigma CCTV Ltd,Environmental Services,Contracted Services,26/06/2014,2113,"6,910.50"
Lancaster City Council,30UH,Enigma CCTV Ltd,Environmental Services,Contracted Services,26/06/2014,2132,"6,910.50"
Lancaster City Council,30UH,Environment Agency,Environmental Services,Miscellaneous Licences,24/06/2014,N011-18316,"6,735.50"
Lancaster City Council,30UH,Environment Agency,Regeneration and Planning,Services - General,05/06/2014,N01148307,"1,387.00"
Lancaster City Council,30UH,Envirovent Ltd,Environmental Services,Contracted Services,02/06/2014,132977,821
Lancaster City Council,30UH,Envirovent Ltd,Environmental Services,Contracted Services,02/06/2014,132979,818
Lancaster City Council,30UH,Envirovent Ltd,Environmental Services,Contracted Services,11/06/2014,131557,569
Lancaster City Council,30UH,Envirovent Ltd,Environmental Services,Contracted Services,11/06/2014,134080,"1,138.00"
Lancaster City Council,30UH,ESRI (UK) Limited,Resources,Software - Arcview ArcIMS,19/06/2014,120643,"23,670.61"
Lancaster City Council,30UH,EXCELEDGE,Environmental Services,Materials - General,11/06/2014,24223,751.4
Lancaster City Council,30UH,Farrell Heyworth,Regeneration and Planning,Services - Consultants,25/06/2014,MOR6119,"1,295.00"
Lancaster City Council,30UH,Fire Safety Solutions Ltd,Resources,R & M - Buildings,20/06/2014,FSS-I195/45,710.02
Lancaster City Council,30UH,Fire Safety Solutions Ltd,Resources,R & M - Buildings,20/06/2014,FSS-I195/45B,710.02
Lancaster City Council,30UH,Fire Safety Solutions Ltd,Resources,R & M - Buildings,20/06/2014,FSS-I195/45C,"1,065.13"
Lancaster City Council,30UH,Fire Safety Solutions Ltd,Resources,R & M - Buildings,20/06/2014,FSS-I195/45D,710.02
Lancaster City Council,30UH,Fire Safety Solutions Ltd,Resources,R & M - Buildings,20/06/2014,FSS-I195/45G,710.02
Lancaster City Council,30UH,Fire Safety Solutions Ltd,Resources,R & M - Buildings,20/06/2014,FSS-I195/45H,710.02
Lancaster City Council,30UH,Fleet (Line Markers) Ltd,Environmental Services,White Lund Stock,11/06/2014,SI146616,"1,854.15"
Lancaster City Council,30UH,FTS Fire and Security Ltd,Environmental Services,R & M - Buildings,30/06/2014,15720,671.3
Lancaster City Council,30UH,FTS Fire and Security Ltd,Resources,R & M - Buildings,23/06/2014,EXT15557,536
Lancaster City Council,30UH,Furniture Matters,Environmental Services,Contribs From Other Local Auths,05/06/2014,679,"-2,058.25"
Lancaster City Council,30UH,Furniture Matters,Environmental Services,Services - General,05/06/2014,700,"11,605.17"
Lancaster City Council,30UH,Furniture Matters,Environmental Services,Services - General,30/06/2014,714,"11,605.17"
Lancaster City Council,30UH,G & G Signs,Environmental Services,R & M - General,23/06/2014,23989,715
Lancaster City Council,30UH,G4S Secure Solutions (UK) Ltd,Health & Housing,Security Services,23/06/2014,S-00000726906-C,784.53
Lancaster City Council,30UH,Geoff Roberts Countryside Management Services,Regeneration and Planning,R & M - General,11/06/2014,2014/1,648
Lancaster City Council,30UH,George Speight and Son Ltd,Health & Housing,Materials For Resale,16/06/2014,bpc001314,676.38
Lancaster City Council,30UH,Graeme Skelcher,Regeneration and Planning,Services - Consultants,05/06/2014,15-Jan,960
Lancaster City Council,30UH,Graham Cass,Regeneration and Planning,Capital Payments To Contractors,04/06/2014,npr000136,"1,200.00"
Lancaster City Council,30UH,Greenham Trading Limited,Environmental Services,White Lund Stock,04/06/2014,11/229082,553.89
Lancaster City Council,30UH,Gullivers Truck Hire Ltd,Environmental Services,Materials - General,16/06/2014,1404/27839,625
Lancaster City Council,30UH,Gullivers Truck Hire Ltd,Environmental Services,Materials - General,16/06/2014,1404/30222,625
Lancaster City Council,30UH,Gullivers Truck Hire Ltd,Environmental Services,Materials - General,16/06/2014,1405/01755,625
Lancaster City Council,30UH,Gullivers Truck Hire Ltd,Environmental Services,Materials - General,16/06/2014,1405/03856,625
Lancaster City Council,30UH,Gullivers Truck Hire Ltd,Environmental Services,Materials - General,16/06/2014,1405/06466,625
Lancaster City Council,30UH,Gullivers Truck Hire Ltd,Environmental Services,Materials - General,16/06/2014,1405/08866,625
Lancaster City Council,30UH,Gullivers Truck Hire Ltd,Environmental Services,Materials - General,16/06/2014,1406/12642,625
Lancaster City Council,30UH,Gullivers Truck Hire Ltd,Environmental Services,Materials - General,18/06/2014,1406/15423,625
Lancaster City Council,30UH,H Bleasdale  (French Polisher),Resources,Fixtures & Fittings - General,10/06/2014,SH/JUN14/20,"1,200.00"
Lancaster City Council,30UH,Haffner Orchestra,Regeneration and Planning,Concerts - General,30/06/2014,npr000145,"1,004.15"
Lancaster City Council,30UH,Halton Container Services Ltd,Environmental Services,Materials For Resale,24/06/2014,1371,750
Lancaster City Council,30UH,Halton Container Services Ltd,Environmental Services,Materials For Resale,25/06/2014,1382,960
Lancaster City Council,30UH,Halton Container Services Ltd,Environmental Services,Materials For Resale,30/06/2014,1400,900
Lancaster City Council,30UH,Harveys,Health & Housing,Equipment and Tools - General,03/06/2014,bpc001270,"2,083.33"
Lancaster City Council,30UH,Helen Konczynski,Resources,R & M - Buildings,10/06/2014,230514,"1,640.00"
Lancaster City Council,30UH,Herbert T. Forrest Ltd,Environmental Services,Capital Payments To Contractors,10/06/2014,101701-2,"158,588.50"
Lancaster City Council,30UH,Heysham High School,Health & Housing,Gas,03/06/2014,IN046495,"1,989.41"
Lancaster City Council,30UH,Heysham Neighbourhood Council,Environmental Services,Parish Toilet Scheme,12/06/2014,cpr000263,"6,742.00"
Lancaster City Council,30UH,Highwood Consultants Ltd,Environmental Services,Capital Payments To Contractors,04/06/2014,20692,"30,067.62"
Lancaster City Council,30UH,HMCS,Resources,Legal & Court Costs,09/06/2014,rpc000022,"2,889.00"
Lancaster City Council,30UH,Hodges North West Ltd,Health & Housing,Capital Grants,23/06/2014,spr000478,"2,340.00"
Lancaster City Council,30UH,Holdex (Plywood) Ltd,Environmental Services,White Lund Stock,11/06/2014,76465,962.5
Lancaster City Council,30UH,Hometrack Data Systems Limited,Regeneration and Planning,Services - General,18/06/2014,2391888,"5,995.00"
Lancaster City Council,30UH,Honeywell Control Systems Ltd,Resources,R & M - Buildings,03/06/2014,5200786267,671.18
Lancaster City Council,30UH,Honeywell Control Systems Ltd,Resources,R & M - Buildings,20/06/2014,5200786263,942.07
Lancaster City Council,30UH,Honeywell Control Systems Ltd,Resources,R & M - Buildings,20/06/2014,5200786276,"3,374.48"
Lancaster City Council,30UH,Honeywell Control Systems Ltd,Resources,R & M - Buildings,20/06/2014,5200816424,"2,155.36"
Lancaster City Council,30UH,Honeywell Control Systems Ltd,Resources,R & M - Buildings,20/06/2014,5200846239,869.44
Lancaster City Council,30UH,Howdens Joinery Co,Environmental Services,Materials - General,16/06/2014,E14/0006186,859.92
Lancaster City Council,30UH,Hydrair,Environmental Services,Materials - General,24/06/2014,HIV194899,595
Lancaster City Council,30UH,Hygiene Cleaning Supplies Ltd,Environmental Services,White Lund Stock,04/06/2014,72445,637.36
Lancaster City Council,30UH,I B Hunt & Son,Environmental Services,Contracted Services,05/06/2014,598,500
Lancaster City Council,30UH,I B Hunt & Son,Environmental Services,Contracted Services,05/06/2014,598,"1,875.00"
Lancaster City Council,30UH,India Holly Moore,Health & Housing,Services - General,03/06/2014,May-14,552.02
Lancaster City Council,30UH,Instarmac Group PLC,Environmental Services,White Lund Stock,30/06/2014,452088,"2,235.52"
Lancaster City Council,30UH,Integrated Water Services Ltd,Resources,R & M - Buildings,16/06/2014,5102909,"1,200.00"
Lancaster City Council,30UH,J C Critchley Ltd,Environmental Services,Capital Payments To Contractors,05/06/2014,902,"5,116.00"
Lancaster City Council,30UH,J C Critchley Ltd,Environmental Services,Capital Payments To Contractors,24/06/2014,903,"4,645.00"
Lancaster City Council,30UH,J. Atkinson and Co,Health & Housing,Materials For Resale,16/06/2014,bpc001315,502.58
Lancaster City Council,30UH,J. Atkinson and Co,Health & Housing,Equipment and Tools - General,26/06/2014,bpc001363,"1,090.00"
Lancaster City Council,30UH,J.M. Pratt Ltd,Health & Housing,Materials For Resale,16/06/2014,bpc001317,603.24
Lancaster City Council,30UH,James Chambers (Timber Merchants) Ltd,Environmental Services,White Lund Stock,02/06/2014,750317,"1,750.80"
Lancaster City Council,30UH,JCB Finance Ltd,Resources,Tpt & Plant Operating Leases,12/06/2014,52436,593.67
Lancaster City Council,30UH,Jewson Limited,Health & Housing,Equipment and Tools - General,05/06/2014,0333/0102522,720.05
Lancaster City Council,30UH,Jewson Limited,Environmental Services,Other Construction Costs,16/06/2014,0333/0103125,"1,619.00"
Lancaster City Council,30UH,Jewson Limited,Environmental Services,White Lund Stock,20/06/2014,0333/0103369,667.07
Lancaster City Council,30UH,JFH,Environmental Services,Materials - General,04/06/2014,24103,676.5
Lancaster City Council,30UH,JGP Resourcing Ltd T/a JobsgoPublic,Governance,Employee Related Advertising,03/06/2014,3653,"6,000.00"
Lancaster City Council,30UH,Jill Trafford (Instructor),Health & Housing,Services - General,25/06/2014,Jun-14,"1,455.00"
Lancaster City Council,30UH,John Cornthwaite (Farm Machinery) Ltd,Environmental Services,Repair & Mtce Of Vehicles,26/06/2014,101879,"1,462.41"
Lancaster City Council,30UH,John Liscombe Ltd,Environmental Services,White Lund Stock,02/06/2014,50029304,"1,641.60"
Lancaster City Council,30UH,K Higginson and Son Buliders,Environmental Services,Capital Payments To Contractors,04/06/2014,,866
Lancaster City Council,30UH,Keepmoat Regeneration Ltd,Resources,Capital Payments To Contractors,04/06/2014,CSCT000543-004,"56,595.92"
Lancaster City Council,30UH,Keepmoat Regeneration Ltd,Resources,Capital Payments To Contractors,04/06/2014,CSCT000576-003,"149,054.83"
Lancaster City Council,30UH,Keepmoat Regeneration Ltd,Resources,Capital Payments To Contractors,16/06/2014,CSCT000571-003,"43,359.29"
Lancaster City Council,30UH,Keycraft,Health & Housing,Materials For Resale,23/06/2014,bpc001352,649.46
Lancaster City Council,30UH,Keyways Security Systems Ltd t/a Westmorland Fire ,Resources,R & M - Buildings,16/06/2014,116426,534.94
Lancaster City Council,30UH,Killgerm Chemicals,Health & Housing,Materials - General,05/06/2014,spc000364,"2,455.45"
Lancaster City Council,30UH,Kykloud Limited,Environmental Services,Services - Medical Fees,02/06/2014,INV-0323,"1,750.00"
Lancaster City Council,30UH,Kykloud Limited,Environmental Services,Services - Medical Fees,24/06/2014,INV-0406,750
Lancaster City Council,30UH,Lancashire County Council,Health & Housing,Contracted Services,03/06/2014,5200057446,"250,000.00"
Lancaster City Council,30UH,Lancashire County Council,Governance,Land Charge Fees - L.C.C.,12/06/2014,5200059706,"2,052.00"
Lancaster City Council,30UH,Lancashire County Council,Health & Housing,Capital Grants,17/06/2014,spr000470,"2,512.01"
Lancaster City Council,30UH,Lancashire County Council,Health & Housing,Capital Grants,17/06/2014,spr000471,"3,806.20"
Lancaster City Council,30UH,Lancashire County Council,Health & Housing,Capital Grants,17/06/2014,spr000472,"3,926.00"
Lancaster City Council,30UH,Lancashire County Council,Health & Housing,Capital Grants,18/06/2014,spr000475,"4,387.00"
Lancaster City Council,30UH,Lancashire County Council,Resources,Sustainable Initiatives,05/06/2014,5200058577,"2,000.00"
Lancaster City Council,30UH,Lancashire County Council,Environmental Services,Landfill Tax,24/06/2014,5200058392,"80,136.49"
Lancaster City Council,30UH,Lancashire County Council,Regeneration and Planning,County Contributions,05/06/2014,5200058400,"1,167.00"
Lancaster City Council,30UH,Lancashire Fire & Rescue Service,Resources,Rent,17/06/2014,8500000704,"1,410.00"
Lancaster City Council,30UH,Lancaster & District YMCA,Health & Housing,Community Development,03/06/2014,70000093,"7,357.50"
Lancaster City Council,30UH,Lancaster Management Services T/A LaraNichols ,Regeneration and Planning,Other Cleaning,05/06/2014,10086,641.31
Lancaster City Council,30UH,Lancaster University,Regeneration and Planning,Services - Consultants,19/06/2014,420053666,"4,166.67"
Lancaster City Council,30UH,Landmark Chambers,Resources,Legal & Court Costs,26/06/2014,135494,"1,500.00"
Lancaster City Council,30UH,Landmark Chambers,Health & Housing,Services - Consultants,12/06/2014,134149,"4,000.00"
Lancaster City Council,30UH,Les Halman Nurseries Ltd,Environmental Services,Materials - General,27/06/2014,40360,"3,965.45"
Lancaster City Council,30UH,Lingwood Security Management Limited,Resources,Security Services,11/06/2014,18834,561
Lancaster City Council,30UH,Litfest,Regeneration and Planning,Grants,16/06/2014,342,"2,375.00"
Lancaster City Council,30UH,M & D Forsyth Electrical Services Ltd,Environmental Services,Void Maintenance - External,11/06/2014,440,799
Lancaster City Council,30UH,M & D Forsyth Electrical Services Ltd,Environmental Services,Void Maintenance - External,11/06/2014,441,735
Lancaster City Council,30UH,M C & M A Stewart (Haulage) Ltd,Environmental Services,White Lund Stock,30/06/2014,37934,943.13
Lancaster City Council,30UH,M D Hanafin & Sons Ltd,Environmental Services,Anti-Social Behaviour,25/06/2014,112257,986
Lancaster City Council,30UH,M D Hanafin & Sons Ltd,Environmental Services,Contracted Services,25/06/2014,112245,521.3
Lancaster City Council,30UH,M D Hanafin & Sons Ltd,Environmental Services,Contracted Services,25/06/2014,112247,885.25
Lancaster City Council,30UH,M D Hanafin & Sons Ltd,Environmental Services,Contracted Services,25/06/2014,112249,844.85
Lancaster City Council,30UH,M D Hanafin & Sons Ltd,Environmental Services,Contracted Services,25/06/2014,112258,"1,325.80"
Lancaster City Council,30UH,M D Hanafin & Sons Ltd,Environmental Services,Contracted Services,25/06/2014,112280,594.26
Lancaster City Council,30UH,M D Hanafin & Sons Ltd,Environmental Services,Grounds Maintenance - Other,25/06/2014,112243,"6,026.70"
Lancaster City Council,30UH,Magnet Limited,Environmental Services,Materials - General,12/06/2014,158/169791,520.8
Lancaster City Council,30UH,Magnet Limited,Environmental Services,Materials - General,12/06/2014,158/170215,502.78
Lancaster City Council,30UH,Magnet Limited,Environmental Services,Other Construction Costs,10/06/2014,158/170114,508.45
Lancaster City Council,30UH,Magnet Limited,Environmental Services,Other Construction Costs,10/06/2014,158/170264,598.72
Lancaster City Council,30UH,Magnet Limited,Environmental Services,Other Construction Costs,10/06/2014,158/170326,579.29
Lancaster City Council,30UH,Magnet Limited,Environmental Services,Other Construction Costs,10/06/2014,158/170469,625.75
Lancaster City Council,30UH,Magnet Limited,Environmental Services,Other Construction Costs,17/06/2014,158/169658,500.33
Lancaster City Council,30UH,Magnet Limited,Environmental Services,Other Construction Costs,17/06/2014,158/169979,503.9
Lancaster City Council,30UH,Magnet Limited,Environmental Services,Other Construction Costs,17/06/2014,158/170035,600.61
Lancaster City Council,30UH,Magnet Limited,Environmental Services,Other Construction Costs,17/06/2014,158/170547,506.85
Lancaster City Council,30UH,Magnet Limited,Environmental Services,Other Construction Costs,17/06/2014,158/170724,726.61
Lancaster City Council,30UH,Maincoat Limited,Environmental Services,R & M - Buildings,24/06/2014,JEH/I/1540,"4,584.00"
Lancaster City Council,30UH,Maincoat Limited,Environmental Services,R & M - Buildings,24/06/2014,JEH/I/1540,"4,004.00"
Lancaster City Council,30UH,Marshalls Mono Ltd,Resources,R & M - Buildings,16/06/2014,ZJB0026521,"1,211.00"
Lancaster City Council,30UH,Maxigiene Environmental Services Limited,Environmental Services,R & M - Buildings,24/06/2014,17389J,720
Lancaster City Council,30UH,Melling with Wrayton Parish Council,Regeneration and Planning,Parish Lengthsman,24/06/2014,20140618,"1,178.00"
Lancaster City Council,30UH,Mercer & Sons Limited,Environmental Services,White Lund Stock,11/06/2014,736752,768
Lancaster City Council,30UH,Metric Group Ltd,Environmental Services,Equipment and Tools - General,25/06/2014,C32254,"2,010.00"
Lancaster City Council,30UH,Metropolitan Borough of Sefton,Governance,Service Training Budget,12/06/2014,360004,500
Lancaster City Council,30UH,Michael Dyson Associates Ltd,Environmental Services,Stock Condition/Housing Needs Survey,10/06/2014,9944,"18,000.00"
Lancaster City Council,30UH,Michael Testler Property Services Ltd,Regeneration and Planning,Rent,12/06/2014,5539,"6,200.00"
Lancaster City Council,30UH,Michael Wilson Joinery and Flat Roofing Specialist,Environmental Services,Contracted Services,02/06/2014,010/14,"1,380.00"
Lancaster City Council,30UH,Michael Wilson Joinery and Flat Roofing Specialist,Environmental Services,Contracted Services,02/06/2014,010/14,"1,680.00"
Lancaster City Council,30UH,Middleton`s-Electrical Contractors,Health & Housing,R & M - Buildings,11/06/2014,314,801.12
Lancaster City Council,30UH,Middleton`s-Electrical Contractors,Health & Housing,R & M - Buildings,18/06/2014,315,"1,115.78"
Lancaster City Council,30UH,More Music in Morecambe Ltd,Regeneration and Planning,Entertainment Fees,26/06/2014,2599,"2,000.00"
Lancaster City Council,30UH,More Music in Morecambe Ltd,Regeneration and Planning,Grants,23/06/2014,2597,"5,300.00"
Lancaster City Council,30UH,Morecambe Brass Band Association,Regeneration and Planning,Concerts - General,25/06/2014,npr000143,951.9
Lancaster City Council,30UH,Morecambe Press Ltd,Regeneration and Planning,Marketing,03/06/2014,6197,"1,220.00"
Lancaster City Council,30UH,Morecambe Press Ltd,Health & Housing,Printing & Stationery,12/06/2014,6224,"1,077.00"
Lancaster City Council,30UH,Morecambe Press Ltd,Health & Housing,Printing & Stationery,26/06/2014,6229,"1,332.00"
Lancaster City Council,30UH,Morecambe Press Ltd,Health & Housing,Printing & Stationery,26/06/2014,6230,558
Lancaster City Council,30UH,Morgan Lambert Limited,Environmental Services,Contracted Services,24/06/2014,19055,600
Lancaster City Council,30UH,Myerscough College,Environmental Services,Service Training Budget,24/06/2014,INV233885,522.63
Lancaster City Council,30UH,National Express,Regeneration and Planning,National Express,04/06/2014,AREXT/00156369,741.11
Lancaster City Council,30UH,National Quality Assurance Ltd,Environmental Services,Sundry Expenses,04/06/2014,85107935,"1,760.00"
Lancaster City Council,30UH,New Progress Housing Association Limited,Health & Housing,Services - General,12/06/2014,nscm317,"3,100.00"
Lancaster City Council,30UH,Nomix Enviro Ltd,Environmental Services,Materials - General,24/06/2014,SI/02348753,"3,620.00"
Lancaster City Council,30UH,North Western Employers Org,Governance,Subscriptions,05/06/2014,9134,"5,014.52"
Lancaster City Council,30UH,Northern Print Distribution Limited,Regeneration and Planning,Marketing,17/06/2014,7233,660
Lancaster City Council,30UH,NorthgateArinso UK Limited,Resources,Software HR/Payroll - Aurora,05/06/2014,I2170606,"4,664.24"
Lancaster City Council,30UH,npower,Health & Housing,Electricity,10/06/2014,lgupnyrp,"7,632.18"
Lancaster City Council,30UH,npower,Health & Housing,Electricity,12/06/2014,LGUPPX4H,755.65
Lancaster City Council,30UH,npower,Health & Housing,Electricity,26/06/2014,lguppx32,"1,169.23"
Lancaster City Council,30UH,npower,Environmental Services,Electricity,11/06/2014,LGUPKZ4B,"1,223.09"
Lancaster City Council,30UH,npower,Environmental Services,Electricity,11/06/2014,LGUPNYRT,"1,933.85"
Lancaster City Council,30UH,npower,Environmental Services,Electricity,26/06/2014,LGUPPX4J,"1,019.98"
Lancaster City Council,30UH,npower,Resources,Electricity,02/06/2014,LGUPKZ2F,"1,547.01"
Lancaster City Council,30UH,npower,Resources,Electricity,10/06/2014,LGUPNYRR,"2,727.09"
Lancaster City Council,30UH,npower,Resources,Electricity,10/06/2014,LGUPNYRS,"1,392.29"
Lancaster City Council,30UH,npower,Resources,Electricity,11/06/2014,LGUPNYRQ,934.48
Lancaster City Council,30UH,npower,Resources,Electricity,11/06/2014,LGUPPX3K,"1,598.23"
Lancaster City Council,30UH,npower,Resources,Electricity,13/06/2014,LGUPPX4M,"1,460.49"
Lancaster City Council,30UH,npower,Regeneration and Planning,Electricity,05/06/2014,LGUN5D49,"2,295.88"
Lancaster City Council,30UH,NPS North West Ltd,Regeneration and Planning,Services - Consultants,19/06/2014,03-11337,"1,259.00"
Lancaster City Council,30UH,NSL Limited,Environmental Services,Contracted Services,11/06/2014,24744,"10,883.34"
Lancaster City Council,30UH,OC Cleaning Limited,Environmental Services,Window Cleaning,23/06/2014,3034,574.4
Lancaster City Council,30UH,OC Cleaning Limited,Environmental Services,Window Cleaning,23/06/2014,3232,574.4
Lancaster City Council,30UH,Orbis Protect Ltd,Regeneration and Planning,Security Services,16/06/2014,R0504908M,"1,281.04"
Lancaster City Council,30UH,Orbis Protect Ltd,Environmental Services,Void Maintenance - External,11/06/2014,r0504811,726.62
Lancaster City Council,30UH,Orion Security Print Ltd,Environmental Services,Printing & Stationery,11/06/2014,24290,709.49
Lancaster City Council,30UH,Orona Limited,Resources,R & M - Buildings,19/06/2014,14/01/006703,"1,242.84"
Lancaster City Council,30UH,Otis Ltd.,Environmental Services,R & M - Buildings,10/06/2014,1123491,"1,267.51"
Lancaster City Council,30UH,Otis Ltd.,Resources,R & M - Buildings,18/06/2014,RTS10461576,"7,120.00"
Lancaster City Council,30UH,Pakflatt (UK) Ltd.,Governance,Printing & Stationery,06/06/2014,4195,659
Lancaster City Council,30UH,Papo Uk Ltd,Regeneration and Planning,Materials For Resale,11/06/2014,24372,501.84
Lancaster City Council,30UH,Parkinson Property,Health & Housing,Homelessness Priority Need Order,03/06/2014,Inv. PAR0298,500
Lancaster City Council,30UH,Parksafe (Systems) Ltd,Environmental Services,Parksafe,11/06/2014,2001,"12,949.00"
Lancaster City Council,30UH,Parksafe (Systems) Ltd,Environmental Services,Parksafe,26/06/2014,2018,"14,546.67"
Lancaster City Council,30UH,Pennine Flooring Supplies Ltd,Environmental Services,White Lund Stock,02/06/2014,INV523118,"1,630.39"
Lancaster City Council,30UH,Pentland Plants,Environmental Services,Materials - General,11/06/2014,56165,"5,995.08"
Lancaster City Council,30UH,Pentland Plants,Environmental Services,Materials - General,11/06/2014,56732,993.72
Lancaster City Council,30UH,Pentland Plants,Environmental Services,Materials - General,11/06/2014,56733,"2,042.04"
Lancaster City Council,30UH,"Peter Atkin, T/A Pete`s Handyman Services",Health & Housing,Capital Grants,05/06/2014,spr000467,"3,158.13"
Lancaster City Council,30UH,Peter Savage Limited,Environmental Services,White Lund Stock,02/06/2014,OP/I152570,"2,064.00"
Lancaster City Council,30UH,Piccadilly Garden Ltd.,Environmental Services,Contracted Services,24/06/2014,2027,918.42
Lancaster City Council,30UH,Piccadilly Garden Ltd.,Environmental Services,Contracted Services,30/06/2014,2054,918.42
Lancaster City Council,30UH,Pinington Limited,Resources,R & M - Buildings,16/06/2014,I002571,"5,642.39"
Lancaster City Council,30UH,Pinington Limited,Resources,R & M - Buildings,18/06/2014,I002572,"2,846.79"
Lancaster City Council,30UH,Power Trading Limited T/A Think Bathrooms,Health & Housing,Capital Grants,26/06/2014,Inv. 1ST,"2,799.17"
Lancaster City Council,30UH,PPG Architectural Coatings UK Limited,Environmental Services,White Lund Stock,05/06/2014,4466463070,806.7
Lancaster City Council,30UH,PPG Architectural Coatings UK Limited,Environmental Services,White Lund Stock,19/06/2014,4465513335,"1,006.88"
Lancaster City Council,30UH,PPG Architectural Coatings UK Limited,Environmental Services,White Lund Stock,19/06/2014,4466525621,548.81
Lancaster City Council,30UH,PPG Architectural Coatings UK Limited,Environmental Services,White Lund Stock,30/06/2014,4466513354,520.2
Lancaster City Council,30UH,PR Chauffeuring Services,Governance,Central Transport - General,26/06/2014,May 2014`,"1,280.00"
Lancaster City Council,30UH,Preston City Council,Resources,Management Fees,12/06/2014,M16,"172,500.00"
Lancaster City Council,30UH,Preston City Council,Health & Housing,Postages,30/06/2014,1693924,"1,398.76"
Lancaster City Council,30UH,Preston City Council,Resources,Printing & Stationery,24/06/2014,1692226,"1,122.00"
Lancaster City Council,30UH,Principal Pipe Organs,Resources,Grants,10/06/2014,9520,"6,888.00"
Lancaster City Council,30UH,Print Image Network Ltd,Governance,Printing & Stationery,04/06/2014,A010328,"1,327.50"
Lancaster City Council,30UH,Print Image Network Ltd,Governance,Printing & Stationery,26/06/2014,A010489,"1,232.50"
Lancaster City Council,30UH,Print Image Network Ltd,Governance,Printing & Stationery,26/06/2014,A010490,"1,290.00"
Lancaster City Council,30UH,Print Image Network Ltd,Governance,Printing & Stationery,26/06/2014,A010558,"10,272.54"
Lancaster City Council,30UH,Print Image Network Ltd,Governance,Printing & Stationery,26/06/2014,A010579,990.81
Lancaster City Council,30UH,Print Image Network Ltd,Governance,Printing & Stationery,26/06/2014,A010586,905
Lancaster City Council,30UH,Print Image Network Ltd,Governance,Printing & Stationery,26/06/2014,A010615,"1,064.20"
Lancaster City Council,30UH,Profile Security Services Ltd,Environmental Services,Security Services,12/06/2014,104107,"5,773.00"
Lancaster City Council,30UH,Profile Security Services Ltd,Environmental Services,Security Services,23/06/2014,105044,"5,979.40"
Lancaster City Council,30UH,Purchase Power,Resources,Postages,25/06/2014,BB634820,"2,026.00"
Lancaster City Council,30UH,Pyramid Pottery Co. Ltd,Regeneration and Planning,Materials For Resale,24/06/2014,2050,659.1
Lancaster City Council,30UH,Quartzelec Ltd,Environmental Services,Other Construction Costs,25/06/2014,7071448,"1,551.00"
Lancaster City Council,30UH,Quartzelec Ltd,Resources,R & M - Buildings,03/06/2014,7071240,545
Lancaster City Council,30UH,R Briggs & Son (Lancaster) Ltd,Environmental Services,Electrical Inspections,30/06/2014,17113,"14,435.35"
Lancaster City Council,30UH,R Briggs & Son (Lancaster) Ltd,Environmental Services,R & M - Buildings,04/06/2014,17062,893
Lancaster City Council,30UH,R Briggs & Son (Lancaster) Ltd,Environmental Services,R & M - Buildings,05/06/2014,17071,"1,984.60"
Lancaster City Council,30UH,R G Parkins & Partners Ltd,Regeneration and Planning,Capital Payments To Contractors,12/06/2014,L30287/03,550
Lancaster City Council,30UH,RAM,Regeneration and Planning,Exhibitions & Events - Guarantees,18/06/2014,Ram 2013328,"2,250.00"
Lancaster City Council,30UH,Real Asset Management Plc,Resources,Software - Real Asset Management,13/06/2014,SJI015147,"5,380.00"
Lancaster City Council,30UH,Richard P Taylor,Resources,Services - Consultants,03/06/2014,H8511,783.62
Lancaster City Council,30UH,RICS,Resources,Books & Periodicals,26/06/2014,ppc000109,"1,050.00"
Lancaster City Council,30UH,Rigby Taylor Ltd,Environmental Services,Materials - General,27/06/2014,RC003121,"2,856.00"
Lancaster City Council,30UH,Royal Mail Group Ltd,Governance,Postages,04/06/2014,9047360638,"1,059.95"
Lancaster City Council,30UH,Royal Mail Group Ltd,Governance,Postages,26/06/2014,9047529197,681.02
Lancaster City Council,30UH,S A Johnstone,Regeneration and Planning,Capital Payments To Contractors,04/06/2014,npr000138,"3,375.00"
Lancaster City Council,30UH,Seeds for Change Lancaster Co-operative Limited,Resources,Deposits - Other,18/06/2014,ppr000080,595
Lancaster City Council,30UH,Shorrocks Building Works,Environmental Services,Contracted Services,10/06/2014,3228,510
Lancaster City Council,30UH,Shorrocks Building Works,Environmental Services,Contracted Services,24/06/2014,3226,"2,870.00"
Lancaster City Council,30UH,Shorrocks Building Works,Environmental Services,Contracted Services,24/06/2014,3227,950
Lancaster City Council,30UH,Shorrocks Building Works,Environmental Services,Void Maintenance - External,24/06/2014,3232,"1,000.00"
Lancaster City Council,30UH,Shorrocks Building Works,Environmental Services,Void Maintenance - External,24/06/2014,3233,580
Lancaster City Council,30UH,Slater Safety Supplies,Environmental Services,White Lund Stock,02/06/2014,153815,736.25
Lancaster City Council,30UH,Slater Safety Supplies,Environmental Services,White Lund Stock,02/06/2014,153858,"2,400.00"
Lancaster City Council,30UH,Smart platform rental ltd,Health & Housing,Materials - General,10/06/2014,spc000366,580
Lancaster City Council,30UH,Socitm Limited,Regeneration and Planning,Internet Provision,17/06/2014,INV5043,960
Lancaster City Council,30UH,Solotrim Ltd.,Resources,Premises Related Insurance,18/06/2014,2122,788.18
Lancaster City Council,30UH,Solotrim Ltd.,Resources,Rent,18/06/2014,2121,"7,325.00"
Lancaster City Council,30UH,South Lakeland District Council,Governance,Sundry Expenses,26/06/2014,369063,711.66
Lancaster City Council,30UH,Sparks Careers Limited,Health & Housing,Services - Consultants,26/06/2014,ME10332,858.1
Lancaster City Council,30UH,Stagecoach,Regeneration and Planning,Stagecoach Tickets,06/06/2014,24181,"2,780.90"
Lancaster City Council,30UH,Standard Fuel Oils Ltd,Environmental Services,White Lund Stock,02/06/2014,13201,"23,601.60"
Lancaster City Council,30UH,Standard Fuel Oils Ltd,Environmental Services,White Lund Stock,11/06/2014,13536,"3,049.50"
Lancaster City Council,30UH,Standard Fuel Oils Ltd,Environmental Services,White Lund Stock,19/06/2014,13535,"23,296.86"
Lancaster City Council,30UH,Straight PLC,Environmental Services,Equipment and Tools - General,12/06/2014,SI-197860,"7,528.50"
Lancaster City Council,30UH,Supa Scaffold Ltd,Environmental Services,Materials - General,04/06/2014,1276,"3,975.00"
Lancaster City Council,30UH,Supa Scaffold Ltd,Environmental Services,Materials - General,25/06/2014,1279,"3,400.00"
Lancaster City Council,30UH,Swift Fire & Security Systems,Environmental Services,R & M - Buildings,11/06/2014,1281517,617
Lancaster City Council,30UH,TCL Developments Limited,Environmental Services,Capital Payments To Contractors,25/06/2014,721,"19,228.54"
Lancaster City Council,30UH,Team Northern Construction Ltd,Environmental Services,Capital Payments To Contractors,18/06/2014,1221,"3,253.79"
Lancaster City Council,30UH,The Association of Electoral Administra,Governance,Service Training Budget,26/06/2014,13870,"1,451.00"
Lancaster City Council,30UH,The Housing Ombudsman,Health & Housing,Subscriptions,26/06/2014,self inv,"4,114.95"
Lancaster City Council,30UH,The Industrial Work Solutions UK Limited,Environmental Services,Contracted Services,06/06/2014,23405,"1,435.50"
Lancaster City Council,30UH,The Industrial Work Solutions UK Limited,Environmental Services,Contracted Services,06/06/2014,23487,"1,560.24"
Lancaster City Council,30UH,The Industrial Work Solutions UK Limited,Environmental Services,Contracted Services,06/06/2014,23545,"1,351.42"
Lancaster City Council,30UH,The Industrial Work Solutions UK Limited,Environmental Services,Contracted Services,26/06/2014,23515,"1,115.02"
Lancaster City Council,30UH,The Industrial Work Solutions UK Limited,Environmental Services,Contracted Services,26/06/2014,23578,"1,398.70"
Lancaster City Council,30UH,The Industrial Work Solutions UK Limited,Environmental Services,Contracted Services,30/06/2014,23604,"1,390.82"
Lancaster City Council,30UH,The James Mercer Group Ltd,Health & Housing,Other Fixed Plant,10/06/2014,64600,626.5
Lancaster City Council,30UH,The Networking People (North West) Limited,Resources,Services - Consultants,04/06/2014,INV001792,"2,750.00"
Lancaster City Council,30UH,The Travellers Choice,Health & Housing,Central Transport - General,06/06/2014,69001,"1,280.00"
Lancaster City Council,30UH,The Travellers Choice,Health & Housing,Central Transport - General,06/06/2014,69002,"1,568.00"
Lancaster City Council,30UH,The Travellers Choice,Health & Housing,Central Transport - General,06/06/2014,69003,"1,332.50"
Lancaster City Council,30UH,The Travellers Choice,Health & Housing,Central Transport - General,06/06/2014,69004,540
Lancaster City Council,30UH,The Uniform & Leisurewear Company Ltd,Environmental Services,White Lund Stock,04/06/2014,74625,"1,327.50"
Lancaster City Council,30UH,The Uniform & Leisurewear Company Ltd,Environmental Services,White Lund Stock,09/06/2014,73314,"1,485.00"
Lancaster City Council,30UH,The Uniform & Leisurewear Company Ltd,Environmental Services,White Lund Stock,09/06/2014,73562,594
Lancaster City Council,30UH,Thomas Graham & Sons (Iron & Steel) Ltd,Environmental Services,Other Construction Costs,24/06/2014,MR159938,514.5
Lancaster City Council,30UH,T-Mobile (UK) Ltd.,Resources,Mobile Telephones,11/06/2014,V00986614744,"1,331.29"
Lancaster City Council,30UH,TNT Post North Limited,Resources,Postages,05/06/2014,IN18US14006858,"2,044.58"
Lancaster City Council,30UH,TNT Post North Limited,Resources,Postages,05/06/2014,IN18US14007266,"1,684.05"
Lancaster City Council,30UH,TNT Post North Limited,Resources,Postages,10/06/2014,IN18US14006675,"2,791.63"
Lancaster City Council,30UH,TNT Post North Limited,Resources,Postages,10/06/2014,IN18US14007527,"1,711.77"
Lancaster City Council,30UH,TNT Post North Limited,Resources,Postages,24/06/2014,IN18US14007902,"1,647.43"
Lancaster City Council,30UH,TNT Post North Limited,Resources,Postages,24/06/2014,IN18US14008221,"1,159.89"
Lancaster City Council,30UH,Tony Clayman Promotions,Regeneration and Planning,Exhibitions & Events - % Above Guarantee,26/06/2014,B3230,"1,030.09"
Lancaster City Council,30UH,Travelers Insurance Company Ltd,Resources,Insurance Excess,12/06/2014,807144,"2,297.00"
Lancaster City Council,30UH,Travelers Insurance Company Ltd,Resources,Insurance Excess,18/06/2014,822155,"10,000.00"
Lancaster City Council,30UH,Tunstall Healthcare(UK)Ltd,Health & Housing,Other Fixed Plant,12/06/2014,30037661,"62,816.97"
Lancaster City Council,30UH,Tyrone Lewis General Building Contractors,Environmental Services,Contracted Services,25/06/2014,,840
Lancaster City Council,30UH,UK Active,Health & Housing,Miscellaneous Licences,03/06/2014,bpc001271,"2,182.50"
Lancaster City Council,30UH,UK Roofing Co,Environmental Services,Contracted Services,18/06/2014,3231,"1,350.00"
Lancaster City Council,30UH,UK Roofing Co,Environmental Services,Contracted Services,18/06/2014,3247,535
Lancaster City Council,30UH,UK Roofing Co,Environmental Services,Contracted Services,25/06/2014,3255,"1,250.00"
Lancaster City Council,30UH,UK Roofing Co,Environmental Services,R & M - Buildings,05/06/2014,3190,500
Lancaster City Council,30UH,United Utilities,Health & Housing,Water Services,03/06/2014,bpc001272,"1,866.97"
Lancaster City Council,30UH,United Utilities,Health & Housing,Water Services,24/06/2014,bpc001353,"3,567.96"
Lancaster City Council,30UH,United Utilities,Environmental Services,Water Services,03/06/2014,24153,"1,000.00"
Lancaster City Council,30UH,United Utilities Water Plc,Resources,Water Services,18/06/2014,4085689636,"2,138.59"
Lancaster City Council,30UH,United Utilities Water Plc,Environmental Services,Water Services,03/06/2014,4081667854,"2,379.35"
Lancaster City Council,30UH,Valley View Pets Hotel,Health & Housing,Services - General,12/06/2014,Nov-14,598.5
Lancaster City Council,30UH,Valley View Pets Hotel,Health & Housing,Services - Kennelling,10/06/2014,Sep-14,"2,695.00"
Lancaster City Council,30UH,Vision Services (North West) Ltd,Environmental Services,Contracted Services,30/06/2014,30418,619.86
Lancaster City Council,30UH,VVV Health & Leisure Club,Regeneration and Planning,Grants,26/06/2014,npr000144,"2,500.00"
Lancaster City Council,30UH,Walker Safety,Regeneration and Planning,R & M - General,16/06/2014,140550,"5,600.00"
Lancaster City Council,30UH,Water Sculptures,Regeneration and Planning,R & M - Sea & River / Promenade,12/06/2014,Y010,"5,101.56"
Lancaster City Council,30UH,Watkins Hire Limited,Resources,R & M - Buildings,16/06/2014,48174,690
Lancaster City Council,30UH,Wessex Products (Leasing) Limited,Resources,Hire Of Equipment,16/06/2014,101396,540
Lancaster City Council,30UH,West Coast Glass (Morecambe) Ltd,Environmental Services,Materials - General,25/06/2014,21342H,"1,305.00"
Lancaster City Council,30UH,Whinfield Study Trust,Health & Housing,Electricity,03/06/2014,WHO133,720.67
Lancaster City Council,30UH,Whinfield Study Trust,Health & Housing,Gas,03/06/2014,WHO133,"1,255.26"
Lancaster City Council,30UH,Whinfield Study Trust,Health & Housing,Gas,04/06/2014,CR010,"-1,140.00"
Lancaster City Council,30UH,Whinfield Study Trust,Health & Housing,Gas,11/06/2014,WHO134,731.11
Lancaster City Council,30UH,Whinfield Study Trust,Health & Housing,Water Services,03/06/2014,WHO133,570.96
Lancaster City Council,30UH,Whitespace Work Software Ltd,Environmental Services,Waste Manager Maintenance,11/06/2014,6756,"1,358.33"
Lancaster City Council,30UH,Winning Building Services,Environmental Services,R & M - Buildings,11/06/2014,177,"7,556.25"
Lancaster City Council,30UH,Woodscape Limited,Regeneration and Planning,Capital Payments To Contractors,05/06/2014,14311,"15,301.00"
Lancaster City Council,30UH,Wybone Limited,Environmental Services,Materials - General,05/06/2014,103724/14,"1,826.00"
Lancaster City Council,30UH,"Your Electrical S, S & S Ltd  T/a YESSS Electrical",Environmental Services,Capital Payments To Contractors,16/06/2014,062IN03129,585
Lancaster City Council,30UH,"Your Electrical S, S & S Ltd  T/a YESSS Electrical",Environmental Services,White Lund Stock,04/06/2014,062IN09204,"3,234.04"
Lancaster City Council,30UH,Zenith Survey Equipment Limited,Environmental Services,Equipment and Tools - General,04/06/2014,387150,719.2
